[Event "Hungary Olimpic Hopes 2022"]
[Site "Tapolca"]
[Date "2022.06.25"]
[Round "5.20"]
[White "Hangay, Lilla"]
[Black "Hangyal, Anna"]
[Result "0-1"]
[ECO "C48"]
[WhiteElo "1239"]
[BlackElo "1105"]
[Annotator "NA RC"]
[PlyCount "98"]
[EventDate "2022.06.23"]
[EventType "swiss"]
[EventCountry "HUN"]
[SourceTitle "playchess.com"]
[Source "ChessBase"]
[SourceQuality "1"]
[TimeControl "5400+30"]

1. e4 {[%emt 0:30:04]} e5 {[%emt 0:30:06]} 2. Nf3 {[%emt 0:00:05]} Nc6 {[%emt 0:00:09]} 3. Nc3 {[%emt 0:00:08]} Nf6 {[%emt 0:00:14]} 4. Bb5 {[%emt 0:00:25]} d6 {[%emt 0:00:27]} 5. d4 {[%emt 0:00:25]} exd4 {[%emt 0:03:29]} 6. Nxd4 {[%emt 0:00:14]} Bd7 {[%emt 0:00:24]} 7. O-O {[%emt 0:00:37]} Be7 {[%emt 0:01:24]} 8. Bxc6 {[%emt 0:00:56]} bxc6 {[%emt 0:00:39]} 9. Qf3 {[%emt 0:01:04]} O-O {[%emt 0:01:43]} 10. Re1 {[%emt 0:01:54]} Bg4 11. Qg3 {[%emt 0:03:51]} Qd7 {[%emt 0:14:07]} 12. h3 {[%emt 0:03:38]} Be6 13. Nf5 {[%emt 0:08:27]} Bxf5 {[%emt 0:12:52]} 14. exf5 {[%emt 0:00:19]} Rfe8 {[%emt 0:00:29]} 15. Qf3 {[%emt 0:05:01]} d5 {[%emt 0:01:33]} 16. Rd1 {[%emt 0:03:14]} Bd6 {[%emt 0:00:47]} 17. Bg5 {[%emt 0:02:30]} Qe7 {[%emt 0:06:13]} 18. Bh4 {[%emt 0:09:15]} Rab8 {[%emt 0:03:11]} 19. b3 {[%emt 0:03:14]} Be5 {[%emt 0:00:33]} 20. Re1 {[%emt 0:04:44]} Qb4 {[%emt 0:00:33]} 21. Rxe5 {[%emt 0:08:33]} Rxe5 {[%emt 0:00:18]} 22. Qg3 {[%emt 0:00:50]} Rxf5 {[%emt 0:02:03]} 23. Qxc7 {[%emt 0:02:08]} Re8 24. Qg3 {[%emt 0:07:12]} Qd4 {[%emt 0:00:43]} 25. Rd1 {[%emt 0:00:36]} Qb4 {[%emt 0:00:58]} 26. Na4 {[%emt 0:01:21]} Nh5 {[%emt 0:02:08]} 27. Qd3 {[%emt 0:00:23]} Rfe5 {[%emt 0:00:21]} 28. Bg3 {[%emt 0:00:49]} Nxg3 {[%emt 0:00:37]} 29. Qxg3 {[%emt 0:00:20]} Re1+ {[%emt 0:00:38]} 30. Rxe1 {[%emt 0:00:12]} Qxe1+ {[%emt 0:00:12]} 31. Kh2 {[%emt 0:00:07]} Qe4 {[%emt 0:00:09]} 32. c3 {[%emt 0:00:46]} Qe5 {[%emt 0:00:10]} 33. f4 {[%emt 0:00:15]} Qe1 {[%emt 0:01:00]} 34. Qg4 {[%emt 0:00:13]} Qe2 {[%emt 0:00:29]} 35. Qg3 {[%emt 0:00:08]} Qxa2 {[%emt 0:00:14]} 36. Nc5 {[%emt 0:00:21]} Qe2 {[%emt 0:01:19]} 37. f5 {[%emt 0:00:28]} Qe5 {[%emt 0:00:16]} 38. Nd7 {[%emt 0:00:42]} Qxg3+ {[%emt 0:00:16]} 39. Kxg3 {[%emt 0:00:05]} Re3+ {[%emt 0:00:08]} 40. Kf4 {[%emt 0:00:18]} Rxc3 {[%emt 0:00:11]} 41. f6 {[%emt 0:00:17]} Rxb3 {[%emt 0:00:19]} 42. fxg7 {[%emt 0:00:18]} Kxg7 {[%emt 0:00:13]} 43. Ne5 {[%emt 0:00:11]} c5 {[%emt 0:00:25]} 44. g4 {[%emt 0:00:11]} c4 {[%emt 0:00:11]} 45. h4 {[%emt 0:00:20]} c3 {[%emt 0:00:13]} 46. Ke3 {[%emt 0:00:06]} Rb4 {[%emt 0:00:41]} 47. Kd3 {[%emt 0:00:25]} Re4 {[%emt 0:00:12]} 48. Nc6 {[%emt 0:01:00]} Rxg4 {[%emt 0:00:11]} 49. Kxc3 {[%emt 0:00:15]} Rc4+ {[%emt 0:00:06]} 0-1

[Event "Hungary Olimpic Hopes 2022"]
[Site "Tapolca"]
[Date "2022.06.25"]
[Round "6.1"]
[White "Turcsanyi, Vince Gergo"]
[Black "Csernyik, Mark"]
[Result "0-1"]
[ECO "B76"]
[WhiteElo "2120"]
[BlackElo "1988"]
[Annotator "NA RC"]
[PlyCount "62"]
[EventDate "2022.06.23"]
[EventType "swiss"]
[EventCountry "HUN"]
[SourceTitle "playchess.com"]
[Source "ChessBase"]
[SourceQuality "1"]
[TimeControl "5400+30"]

1. e4 {[%emt 0:00:03]} c5 {[%emt 0:00:06]} 2. Nf3 {[%emt 0:00:06]} d6 {[%emt 0:00:20]} 3. d4 {[%emt 0:00:07]} cxd4 {[%emt 0:00:04]} 4. Nxd4 {[%emt 0:00:09]} Nf6 {[%emt 0:00:10]} 5. Nc3 {[%emt 0:00:08]} g6 {[%emt 0:00:19]} 6. Be3 {[%emt 0:00:09]} Bg7 {[%emt 0:00:47]} 7. f3 {[%emt 0:00:08]} O-O {[%emt 0:00:05]} 8. Bc4 {[%emt 0:00:07]} Nc6 {[%emt 0:00:40]} 9. Bb3 {[%emt 0:00:07]} Bd7 {[%emt 0:00:57]} 10. h4 {[%emt 0:00:13]} h5 {[%emt 0:03:07]} 11. Qd2 {[%emt 0:00:15]} a6 {[%emt 0:08:01]} 12. O-O-O {[%emt 0:09:06]} Ne5 {[%emt 0:08:31]} 13. g4 {[%emt 0:14:06]} hxg4 {[%emt 0:02:30]} 14. h5 {[%emt 0:00:20]} Nxh5 {[%emt 0:09:10]} ({Less strong is} 14... gxh5 15. Bh6 e6 16. Bxg7 Kxg7 17. f4) 15. Bh6 {[%emt 0:03:02]} e6 {[%emt 0:00:31] [#]} (15... gxf3 $2 {[#]} 16. Rxh5 $1 {[%mdl 512]} Bf6 17. Rxe5 dxe5 18. Nxf3 $18) (15... Nxf3 $2 16. Nxf3 e6 17. Nh2 $18) (15... Kh7 $1 $11 {remains equal.} 16. Bxg7 Kxg7) 16. Bxg7 $2 {[%emt 0:12:08]} (16. Rdg1 $1 $16 {is forced if you want to stay better.} g3 17. Nce2) 16... Kxg7 17. fxg4 {[%emt 0:01:04]} Nxg4 $17 {[%emt 0:00:44]} 18. Rdg1 {[%emt 0:00:23]} Nhf6 {[%emt 0:06:15]} 19. Qg5 {[%emt 0:27:05]} Rh8 {[%emt 0:03:39]} 20. Nf3 {[%emt 0:00:24]} Qb6 21. Nd1 Qc5 {[%emt 0:03:26]} 22. e5 {[%emt 0:08:05]} dxe5 {[%emt 0:01:44]} 23. Rxh8 {[%emt 0:00:37]} Rxh8 {[%emt 0:00:21]} 24. Rxg4 {[%emt 0:00:02]} Nxg4 {[%emt 0:02:12]} 25. Qxg4 {[%emt 0:05:49]} Bc6 {[%emt 0:09:45]} 26. Ng5 Bd5 27. c4 {[%emt 0:04:14]} b5 {[%emt 0:02:44]} 28. Kb1 {[%emt 0:01:12]} Bxc4 {[%emt 0:00:38]} 29. Bc2 {[%emt 0:00:07]} Bxa2+ {[%emt 0:00:31]} 30. Kxa2 {[%emt 0:01:58]} Qxc2 {[%emt 0:00:10]} 31. Nc3 {[%emt 0:00:03]} Qf5 {[%emt 0:00:37]} 0-1

[Event "Hungary Olimpic Hopes 2022"]
[Site "Tapolca"]
[Date "2022.06.25"]
[Round "6.2"]
[White "Matyassy, Lazar"]
[Black "Gergely, Daniel"]
[Result "1/2-1/2"]
[ECO "B35"]
[WhiteElo "2161"]
[BlackElo "1964"]
[Annotator "RC"]
[PlyCount "47"]
[EventDate "2022.06.23"]
[EventType "swiss"]
[EventCountry "HUN"]
[SourceTitle "playchess.com"]
[Source "ChessBase"]
[SourceQuality "1"]
[TimeControl "5400+30"]

1. e4 {[%emt 0:00:13]} c5 {[%emt 0:00:21]} 2. Nf3 {[%emt 0:00:10]} Nc6 {[%emt 0:00:11]} 3. d4 {[%emt 0:00:16]} cxd4 {[%emt 0:00:14]} 4. Nxd4 {[%emt 0:00:07]} Nf6 {[%emt 0:00:28]} 5. Nc3 {[%emt 0:00:16]} g6 {[%emt 0:00:12]} 6. Be3 {[%emt 0:02:26]} Bg7 {[%emt 0:00:11]} 7. Bc4 {[%emt 0:00:08]} Qa5 {[%emt 0:00:19]} 8. O-O {[%emt 0:00:55]} O-O {[%emt 0:00:24]} 9. Bb3 {[%emt 0:00:42]} d6 {[%emt 0:00:33]} 10. h3 {[%emt 0:01:00]} Bd7 {[%emt 0:01:26]} 11. Nf3 {[%emt 0:03:39]} Qh5 12. Bg5 {[%emt 0:24:27]} h6 {[%emt 0:12:25]} 13. Be3 {[%emt 0:36:06]} b5 {[%emt 0:18:39]} 14. a3 {[%emt 0:03:11]} a5 15. Nd5 {[%emt 0:00:28]} Nxe4 {[%emt 0:33:02]} 16. Nb6 {[%emt 0:22:38]} Bxh3 17. Nd2 Bg4 {[%emt 0:23:26]} 18. f3 {[%emt 0:00:43]} Nxd2 {[%emt 0:00:33]} 19. fxg4 {[%emt 0:00:33]} Qh4 {[%emt 0:02:02]} 20. Qxd2 {[%emt 0:00:13]} Be5 {[%emt 0:00:29]} 21. Bf4 {[%emt 0:00:11]} Bd4+ {[%emt 0:00:13]} 22. Be3 {[%emt 0:00:07]} Be5 {[%emt 0:00:01]} 23. Bf4 {[%emt 0:01:25]} Bd4+ {[%emt 0:00:59]} 24. Be3 {[%emt 0:00:24]} 1/2-1/2

[Event "Hungary Olimpic Hopes 2022"]
[Site "Tapolca"]
[Date "2022.06.25"]
[Round "6.3"]
[White "Megyaszai, Balazs"]
[Black "Giang, Tran Nam"]
[Result "0-1"]
[ECO "B40"]
[WhiteElo "1945"]
[BlackElo "2124"]
[Annotator "NA RC"]
[PlyCount "104"]
[EventDate "2022.06.23"]
[EventType "swiss"]
[EventCountry "HUN"]
[SourceTitle "playchess.com"]
[Source "ChessBase"]
[SourceQuality "1"]
[TimeControl "5400+30"]

1. e4 {[%emt 0:01:51]} c5 {[%emt 0:00:06]} 2. Nf3 {[%emt 0:00:32]} e6 {[%emt 0:00:04]} 3. d4 {[%emt 0:00:25]} cxd4 {[%emt 0:00:09]} 4. Nxd4 {[%emt 0:00:15]} Qb6 {[%emt 0:00:10]} 5. Nb3 {[%emt 0:01:41]} Qc7 {[%emt 0:00:38]} 6. Nc3 {[%emt 0:01:28]} a6 {[%emt 0:10:02]} 7. a4 {[%emt 0:10:17]} b6 {[%emt 0:00:45]} 8. Bd3 {[%emt 0:03:10]} Nf6 {[%emt 0:01:36]} 9. Bd2 {[%emt 0:01:44]} Be7 {[%emt 0:00:37]} 10. Qe2 {[%emt 0:02:59]} d6 {[%emt 0:01:22]} 11. O-O {[%emt 0:04:37]} Nc6 {[%emt 0:02:28]} 12. f4 {[%emt 0:03:07]} O-O $11 {[%emt 0:04:27]} 13. Rae1 {[%emt 0:21:40]} (13. Rf3 $142) 13... Re8 {[%emt 0:05:07]} (13... d5 $11) 14. e5 {[%emt 0:08:29]} Nd7 {[%emt 0:03:52]} 15. exd6 {[%emt 0:00:30]} Qxd6 {[%emt 0:03:06]} 16. Ne4 {[%emt 0:10:50]} Qc7 {[%emt 0:07:18]} 17. c3 {[%emt 0:02:46]} Bb7 {[%emt 0:07:03]} 18. Qf2 {[%emt 0:01:29]} g6 {[%emt 0:15:06]} 19. Be3 {[%emt 0:04:15]} f5 {[%emt 0:00:30]} 20. Ned2 {[%emt 0:00:30]} Bf6 {[%emt 0:00:30]} 21. Bc4 {[%emt 0:07:12]} Kg7 {[%emt 0:13:14]} 22. Nd4 {[%emt 0:00:34]} Nxd4 {[%emt 0:00:30]} 23. cxd4 {[%emt 0:01:38]} Qc6 {[%emt 0:06:01]} 24. Qf3 {[%emt 0:01:35]} b5 {[%emt 0:00:30]} 25. Qxc6 {[%emt 0:00:30]} Bxc6 {[%emt 0:00:02]} 26. axb5 {[%emt 0:00:13]} axb5 {[%emt 0:02:23]} 27. Bb3 {[%emt 0:03:26]} Bd5 {[%emt 0:00:30]} 28. Rc1 {[%emt 0:00:30]} Nb6 {[%emt 0:03:48]} 29. Rc5 {[%emt 0:01:13]} Bxb3 {[%emt 0:01:00]} 30. Nxb3 {[%emt 0:00:11]} Nd5 {[%emt 0:00:28]} 31. Bd2 {[%emt 0:00:37]} Reb8 {[%emt 0:01:37]} 32. g3 {[%emt 0:02:45]} Ra2 {[%emt 0:00:32]} 33. Rb1 {[%emt 0:00:33]} Ra4 {[%emt 0:01:33]} 34. Bc3 {[%emt 0:01:54]} Kf7 {[%emt 0:00:53]} 35. Re1 {[%emt 0:00:36]} Ra6 {[%emt 0:00:36]} 36. Bd2 {[%emt 0:00:41]} Be7 {[%emt 0:01:14]} 37. Rc2 {[%emt 0:00:25]} Rd8 {[%emt 0:01:34]} 38. Kg2 {[%emt 0:00:45]} Ra2 {[%emt 0:00:43]} 39. Nc5 {[%emt 0:00:37]} Rc8 {[%emt 0:01:53]} 40. Rec1 {[%emt 0:00:26]} Bf6 {[%emt 0:01:02]} 41. Nb3 {[%emt 0:00:31]} Rxc2 {[%emt 0:00:15]} 42. Rxc2 {[%emt 0:00:01]} Ra4 {[%emt 0:00:27]} 43. Rc5 {[%emt 0:00:30]} Bxd4 {[%emt 0:00:44]} 44. Rxb5 {[%emt 0:00:02]} Bxb2 {[%emt 0:00:15]} 45. Rb7+ {[%emt 0:00:18]} Kg8 {[%emt 0:00:49]} 46. Rb8+ {[%emt 0:00:48]} Kg7 {[%emt 0:00:33]} 47. Kh3 {[%emt 0:00:59]} Bd4 {[%emt 0:00:46]} 48. Bc1 {[%emt 0:00:37]} Kh6 {[%emt 0:00:58]} 49. Re8 {[%emt 0:00:48]} Bg1 {[%emt 0:01:13]} 50. Kg2 {[%emt 0:00:46]} Be3 {[%emt 0:00:50]} 51. Rxe6 {[%emt 0:00:36]} Ra2+ {[%emt 0:00:18]} 52. Kf3 {[%emt 0:00:32]} Rf2# {[%emt 0:00:07]} 0-1

[Event "Hungary Olimpic Hopes 2022"]
[Site "Tapolca"]
[Date "2022.06.25"]
[Round "6.4"]
[White "Kolimar, Kristof Pal"]
[Black "Szegedy, Matyas"]
[Result "1/2-1/2"]
[ECO "A05"]
[WhiteElo "2203"]
[BlackElo "2046"]
[Annotator "RC"]
[PlyCount "90"]
[EventDate "2022.06.23"]
[EventType "swiss"]
[EventCountry "HUN"]
[SourceTitle "playchess.com"]
[Source "ChessBase"]
[SourceQuality "1"]
[TimeControl "5400+30"]

1. Nf3 {[%emt 0:00:05]} Nf6 {[%emt 0:00:20]} 2. c4 {[%emt 0:00:04]} g6 {[%emt 0:00:08]} 3. g3 {[%emt 0:00:06]} b6 {[%emt 0:00:04]} 4. Bg2 {[%emt 0:00:06]} Bb7 {[%emt 0:00:12]} 5. O-O {[%emt 0:00:05]} Bg7 {[%emt 0:00:00]} 6. d4 {[%emt 0:00:07]} O-O {[%emt 0:00:14]} 7. Nc3 {[%emt 0:00:03]} Ne4 {[%emt 0:00:05]} 8. Nxe4 {[%emt 0:00:05]} Bxe4 {[%emt 0:00:09]} 9. Be3 {[%emt 0:00:02]} c5 {[%emt 0:00:51]} 10. Qd2 {[%emt 0:01:45]} d6 {[%emt 0:00:10]} 11. Bh6 {[%emt 0:01:20]} Nd7 {[%emt 0:14:26]} 12. Bxg7 {[%emt 0:00:06]} Kxg7 {[%emt 0:00:08]} 13. Rfd1 {[%emt 0:00:05]} Nf6 {[%emt 0:02:06]} 14. b3 {[%emt 0:01:59]} Qc8 {[%emt 0:12:10]} 15. Rac1 {[%emt 0:04:47]} Rb8 {[%emt 0:07:53]} 16. Qc3 {[%emt 0:12:43]} Rd8 {[%emt 0:09:02]} 17. d5 {[%emt 0:10:08]} Qd7 {[%emt 0:07:23]} 18. Bf1 {[%emt 0:07:23]} Bxf3 {[%emt 0:12:10]} 19. exf3 {[%emt 0:00:14]} e5 {[%emt 0:06:48]} 20. Kg2 {[%emt 0:11:14]} Re8 {[%emt 0:06:42]} 21. Re1 {[%emt 0:03:07]} b5 {[%emt 0:04:41]} 22. cxb5 {[%emt 0:07:19]} Nxd5 {[%emt 0:00:06]} 23. Qd2 {[%emt 0:00:06]} Nf6 {[%emt 0:00:07]} 24. Red1 {[%emt 0:01:58]} Rbd8 {[%emt 0:00:53]} 25. b4 {[%emt 0:01:50]} cxb4 {[%emt 0:02:06]} 26. Qxb4 {[%emt 0:01:29]} d5 {[%emt 0:00:22]} 27. Rc5 {[%emt 0:10:54]} e4 {[%emt 0:05:04]} 28. fxe4 {[%emt 0:01:14]} Rxe4 {[%emt 0:00:07]} 29. Rd4 {[%emt 0:01:04]} Qg4 {[%emt 0:00:18]} 30. Rxe4 {[%emt 0:01:46]} dxe4 {[%emt 0:00:06]} 31. Qc3 {[%emt 0:01:56]} Rd6 {[%emt 0:07:24]} 32. Rc7 {[%emt 0:08:08]} Rd7 {[%emt 0:02:24]} 33. Rc6 {[%emt 0:00:21]} Qf5 {[%emt 0:00:24]} 34. a4 {[%emt 0:01:41]} Re7 {[%emt 0:00:07]} 35. Bc4 {[%emt 0:00:10]} e3 {[%emt 0:00:13]} 36. f3 {[%emt 0:01:06]} e2 {[%emt 0:00:19]} 37. Qe1 {[%emt 0:00:01]} Qc2 {[%emt 0:01:58]} 38. Kf2 {[%emt 0:03:01]} Qd1 {[%emt 0:00:03]} 39. Bxe2 {[%emt 0:03:46]} Qd4+ {[%emt 0:00:01]} 40. Kf1 {[%emt 0:00:31]} Nd5 {[%emt 0:00:06]} 41. Qc1 {[%emt 0:01:42]} Ne3+ 42. Ke1 Ng2+ {[%emt 0:01:28]} 43. Kf1 {[%emt 0:00:02]} Ne3+ {[%emt 0:00:01]} 44. Ke1 {[%emt 0:00:07]} Ng2+ {[%emt 0:01:26]} 45. Kf1 {[%emt 0:00:03]} Ne3+ 1/2-1/2

[Event "Hungary Olimpic Hopes 2022"]
[Site "Tapolca"]
[Date "2022.06.25"]
[Round "6.5"]
[White "Eros, Vivien"]
[Black "Lazsadi, Kerka Lilla"]
[Result "1-0"]
[ECO "A40"]
[WhiteElo "1592"]
[BlackElo "1755"]
[Annotator "NA RC"]
[PlyCount "67"]
[EventDate "2022.06.23"]
[EventType "swiss"]
[EventCountry "HUN"]
[SourceTitle "playchess.com"]
[Source "ChessBase"]
[SourceQuality "1"]
[TimeControl "5400+30"]

1. d4 {[%emt 0:00:02]} e6 {[%emt 0:00:07]} 2. Nf3 {[%emt 0:00:05]} d5 {[%emt 0:00:12]} 3. Bf4 {[%emt 0:00:04]} c5 {[%emt 0:00:18]} 4. e3 {[%emt 0:00:14]} Nc6 {[%emt 0:00:06]} 5. c3 {[%emt 0:00:04]} c4 {[%emt 0:00:20]} 6. b3 {[%emt 0:01:32]} b5 {[%emt 0:00:28]} 7. a4 {[%emt 0:00:21]} b4 {[%emt 0:01:07]} 8. bxc4 {[%emt 0:01:45]} bxc3 {[%emt 0:00:15]} 9. Nxc3 {[%emt 0:01:19]} Bb4 {[%emt 0:00:17]} 10. Qc2 {[%emt 0:00:42]} Qa5 {[%emt 0:00:27]} 11. Rc1 {[%emt 0:00:12]} Nf6 {[%emt 0:01:47]} 12. Nd2 {[%emt 0:00:18]} Bd7 {[%emt 0:06:03]} 13. Be2 {[%emt 0:04:49]} Bxc3 {[%emt 0:01:09]} 14. Qxc3 {[%emt 0:00:14]} Qxa4 {[%emt 0:01:13]} 15. O-O {[%emt 0:02:17]} Qa5 {[%emt 0:03:08]} 16. Qxa5 {[%emt 0:02:04]} Nxa5 {[%emt 0:00:08]} 17. cxd5 {[%emt 0:01:29]} Nxd5 {[%emt 0:00:40]} 18. Bd6 {[%emt 0:01:00]} Nb7 {[%emt 0:01:15]} 19. Ba3 {[%emt 0:00:50]} Nd8 {[%emt 0:21:14]} 20. Ne4 {[%emt 0:03:15]} Bc6 {[%emt 0:01:38]} 21. Nd6+ {[%emt 0:02:05]} Kd7 {[%emt 0:00:36]} 22. Bf3 {[%emt 0:02:07]} f6 {[%emt 0:02:32]} 23. Rfd1 {[%emt 0:11:57]} a5 {[%emt 0:09:18]} 24. Nc4 {[%emt 0:05:07]} Ra6 {[%emt 0:12:38]} 25. e4 {[%emt 0:02:15]} Nb6 {[%emt 0:01:30]} 26. Nxb6+ {[%emt 0:00:24]} Rxb6 {[%emt 0:00:08]} 27. d5 {[%emt 0:00:11]} Ba8 {[%emt 0:06:07]} 28. dxe6+ {[%emt 0:10:04]} Kxe6 {[%emt 0:00:20]} 29. Bg4+ {[%emt 0:00:11]} Kf7 {[%emt 0:00:42]} 30. Rc7+ {[%emt 0:00:55]} Kg6 {[%emt 0:01:09]} 31. Bf5+ {[%emt 0:00:35]} Kh6 {[%emt 0:00:21]} 32. h4 g6 {[%emt 0:07:59]} 33. Bc1+ {[%emt 0:06:53]} Kh5 {[%emt 0:00:11]} 34. Rxd8 {[%emt 0:00:52]} 1-0

[Event "Hungary Olimpic Hopes 2022"]
[Site "Tapolca"]
[Date "2022.06.25"]
[Round "6.6"]
[White "Balazs, Sztella Anna"]
[Black "Szarvas, Nora Orsolya"]
[Result "1-0"]
[ECO "B67"]
[WhiteElo "1572"]
[BlackElo "1669"]
[Annotator "NA RC"]
[PlyCount "154"]
[EventDate "2022.06.23"]
[EventType "swiss"]
[EventCountry "HUN"]
[SourceTitle "playchess.com"]
[Source "ChessBase"]
[SourceQuality "1"]
[TimeControl "5400+30"]

1. e4 {[%emt 0:00:01]} c5 {[%emt 0:00:08]} 2. Nf3 {[%emt 0:00:03]} d6 {[%emt 0:00:18]} 3. d4 {[%emt 0:00:04]} cxd4 {[%emt 0:00:04]} 4. Nxd4 {[%emt 0:00:04]} Nf6 {[%emt 0:00:14]} 5. Nc3 {[%emt 0:00:05]} Nc6 {[%emt 0:00:28]} 6. Bg5 {[%emt 0:00:06]} e6 {[%emt 0:00:45]} 7. Qd2 {[%emt 0:00:18]} a6 {[%emt 0:00:52]} 8. O-O-O {[%emt 0:00:12]} Bd7 {[%emt 0:01:10]} 9. f4 {[%emt 0:00:08]} h6 {[%emt 0:00:55]} 10. Bh4 {[%emt 0:00:14]} Nxe4 {[%emt 0:08:34]} 11. Nxe4 {[%emt 0:02:34]} Qxh4 {[%emt 0:00:08]} 12. Nxc6 {[%emt 0:00:08]} Bxc6 {[%emt 0:00:14]} 13. Nxd6+ {[%emt 0:00:06]} Bxd6 {[%emt 0:00:07]} 14. Qxd6 {[%emt 0:00:06]} Rd8 {[%emt 0:00:48]} 15. Qxd8+ {[%emt 0:00:07]} Qxd8 {[%emt 0:00:05]} 16. Rxd8+ {[%emt 0:00:04]} Kxd8 {[%emt 0:00:03]} 17. Rg1 {[%emt 0:00:08]} Ke7 {[%emt 0:00:21]} 18. Bc4 {[%emt 0:00:34]} Rd8 {[%emt 0:00:18]} 19. g3 {[%emt 0:00:09]} Bf3 {[%emt 0:00:41]} 20. Re1 {[%emt 0:01:03]} Rc8 {[%emt 0:00:42]} 21. Bb3 {[%emt 0:00:12]} Rd8 22. c3 {[%emt 0:01:52]} Kf6 {[%emt 0:01:02]} 23. Bc2 Rd7 {[%emt 0:04:18]} 24. Re3 {[%emt 0:01:44]} Bg2 {[%emt 0:00:43]} 25. Re2 {[%emt 0:01:11]} Bc6 {[%emt 0:01:09]} 26. Re1 {[%emt 0:00:14]} g6 {[%emt 0:02:15]} 27. Re2 {[%emt 0:02:47]} Bf3 {[%emt 0:00:47]} 28. Re3 {[%emt 0:00:07]} Bg4 {[%emt 0:01:22]} 29. c4 {[%emt 0:01:35]} Bf5 {[%emt 0:00:35]} 30. Bd1 Bh3 {[%emt 0:01:28]} 31. Be2 {[%emt 0:03:17]} Bg2 {[%emt 0:02:48]} 32. Kc2 {[%emt 0:00:49]} Rc7 {[%emt 0:00:47]} 33. b3 {[%emt 0:01:12]} Rd7 {[%emt 0:00:44]} 34. Kc3 {[%emt 0:00:23]} Bc6 {[%emt 0:00:16]} 35. b4 Rd6 {[%emt 0:02:01]} 36. b5 {[%emt 0:03:06]} axb5 {[%emt 0:00:16]} 37. cxb5 {[%emt 0:00:05]} Bd5 {[%emt 0:00:51]} 38. a4 {[%emt 0:00:15]} Rd8 {[%emt 0:00:23]} 39. Kb4 {[%emt 0:01:54]} Rc8 {[%emt 0:07:15]} 40. Bf3 b6 {[%emt 0:17:24]} 41. Bxd5 {[%emt 0:00:56]} exd5 {[%emt 0:00:05]} 42. Kb3 g5 {[%emt 0:05:56]} 43. fxg5+ {[%emt 0:10:18]} hxg5 {[%emt 0:00:24]} 44. g4 Rc7 {[%emt 0:06:01]} 45. h3 {[%emt 0:00:34]} Rc8 46. a5 {[%emt 0:10:03]} Rc5 {[%emt 0:03:48]} 47. a6 Rxb5+ {[%emt 0:03:40]} 48. Ka2 {[%emt 0:00:37]} Rc5 {[%emt 0:00:16]} 49. Rb3 {[%emt 0:00:33]} b5 {[%emt 0:01:37]} 50. Ra3 {[%emt 0:00:55]} Rc8 51. Kb3 {[%emt 0:00:00]} Ke6 {[%emt 0:02:09]} 52. Kb4 Kd6 {[%emt 0:01:07]} 53. Kxb5 {[%emt 0:01:08]} Rb8+ {[%emt 0:01:22]} 54. Ka5 {[%emt 0:01:31]} Ra8 {[%emt 0:09:54]} 55. Rf3 {[%emt 0:00:46]} Kc6 {[%emt 0:00:32]} 56. Rxf7 Rg8 57. a7 {[%emt 0:01:22]} d4 {[%emt 0:01:18]} 58. Ka6 d3 59. Rf3 {[%emt 0:00:58]} Rd8 {[%emt 0:01:22]} 60. Rxd3 {[%emt 0:00:06]} Rxd3 {[%emt 0:00:32]} 61. a8=Q+ {[%emt 0:00:09]} Kc5 {[%emt 0:00:18]} 62. Qc8+ {[%emt 0:00:10]} Kb4 {[%emt 0:00:39]} 63. Qf8+ {[%emt 0:00:42]} Kc4 {[%emt 0:00:15]} 64. Qg8+ {[%emt 0:00:07]} Rd5 {[%emt 0:00:04]} 65. Kb6 {[%emt 0:00:29]} Kd4 {[%emt 0:00:10]} 66. Kc6 Re5 67. Qg7 {[%emt 0:01:41]} Ke4 {[%emt 0:00:25]} 68. Qg6+ {[%emt 0:00:10]} Kf4 {[%emt 0:00:33]} 69. Kd6 {[%emt 0:00:34]} Ra5 {[%emt 0:00:17]} 70. Qf6+ {[%emt 0:00:08]} Ke4 {[%emt 0:00:13]} 71. Ke7 Ra7+ {[%emt 0:00:08]} 72. Kf8 {[%emt 0:00:24]} Ra3 {[%emt 0:00:38]} 73. Qxg5 {[%emt 0:00:43]} Rxh3 {[%emt 0:00:14]} 74. Qf5+ {[%emt 0:00:12]} Ke3 {[%emt 0:00:11]} 75. g5 {[%emt 0:00:08]} Rh5 {[%emt 0:00:43]} 76. Kf7 {[%emt 0:00:23]} Kd4 {[%emt 0:00:27]} 77. Qg4+ {[%emt 0:00:08]} Kc5 1-0

[Event "Hungary Olimpic Hopes 2022"]
[Site "Tapolca"]
[Date "2022.06.25"]
[Round "6.7"]
[White "Bende, Eniko Tunde"]
[Black "Kovacs, Reka"]
[Result "0-1"]
[ECO "A35"]
[WhiteElo "1142"]
[BlackElo "1685"]
[Annotator "NA RC"]
[PlyCount "58"]
[EventDate "2022.06.23"]
[EventType "swiss"]
[EventCountry "HUN"]
[SourceTitle "playchess.com"]
[Source "ChessBase"]
[SourceQuality "1"]
[TimeControl "5400+30"]

1. c4 {[%emt 0:00:01]} c5 {[%emt 0:00:06]} 2. Nc3 {[%emt 0:00:10]} Nf6 {[%emt 0:00:16]} 3. Nf3 {[%emt 0:00:13]} Nc6 {[%emt 0:00:36]} 4. g3 {[%emt 0:00:13]} d5 {[%emt 0:00:14]} 5. cxd5 {[%emt 0:00:10]} Nxd5 {[%emt 0:00:05]} 6. Bg2 {[%emt 0:00:12]} Nc7 {[%emt 0:00:18]} 7. O-O {[%emt 0:00:07]} e5 {[%emt 0:00:15]} 8. d3 {[%emt 0:00:07]} Be7 {[%emt 0:00:14]} 9. Be3 {[%emt 0:00:14]} O-O {[%emt 0:01:29]} 10. Rc1 {[%emt 0:00:43]} b6 {[%emt 0:05:42]} 11. Nxe5 {[%emt 0:01:49]} Nxe5 {[%emt 0:00:07]} 12. Bxa8 {[%emt 0:00:24]} Nxa8 {[%emt 0:00:02]} 13. Bf4 {[%emt 0:01:09]} Ng6 14. Qd2 {[%emt 0:00:37]} Nxf4 {[%emt 0:00:41]} 15. gxf4 {[%emt 0:01:35]} Bh3 {[%emt 0:01:04]} 16. Rfe1 {[%emt 0:01:00]} Bh4 {[%emt 0:01:54]} 17. Qe3 {[%emt 0:00:56]} Qd7 {[%emt 0:00:16]} 18. Qf3 {[%emt 0:01:26]} Nc7 19. e4 {[%emt 0:05:06]} Bg4 {[%emt 0:03:35]} 20. Qg2 f5 21. Nd5 {[%emt 0:11:38]} Nxd5 {[%emt 0:08:14]} 22. exd5 Rf6 {[%emt 0:00:29]} 23. Re5 {[%emt 0:02:12]} Rg6 {[%emt 0:00:43]} 24. Kh1 {[%emt 0:00:43]} Qa4 {[%emt 0:03:25]} 25. Rce1 Qxf4 26. R1e3 {[%emt 0:02:41]} Bh5 {[%emt 0:11:02]} 27. Qh3 {[%emt 0:06:23]} Qxf2 28. Re1 {[%emt 0:02:51]} Bf3+ {[%emt 0:00:48]} 29. Qxf3 {[%emt 0:00:24]} Qxf3# {[%emt 0:00:02]} 0-1